[Event "SRB-chT Men 1st League 2019"]
[Site "Subotica"]
[Date "2019.08.31"]
[Round "10.5"]
[White "Lukovic, Vladimir"]
[Black "Nestorovic, Nikola"]
[Result "1-0"]
[ECO "C50"]
[WhiteElo "2420"]
[BlackElo "2468"]
[Annotator "ChessBase"]
[PlyCount "79"]
[EventDate "2019.08.23"]
[EventType "team-tourn"]
[EventCountry "SRB"]
[SourceTitle "playchess.com"]
[Source "ChessBase"]
[SourceQuality "1"]
[TimeControl "40/5400+30:1800+30"]

1. e4 {[%emt 1:30:30]} e5 {[%emt 1:30:30]} 2. Nf3 {[%emt 0:00:30]} Nc6 {[%emt 0:00:30]} 3. Nc3 {[%emt 0:00:30]} Nf6 {[%emt 0:00:30]} 4. Bb5 {[%emt 0:00:30]} Bd6 {[%emt 0:00:30]} 5. a3 {[%emt 0:00:30]} a6 {[%emt 0:00:30]} 6. Bc4 {[%emt 0:00:30]} Bc5 {[%emt 0:00:30]} 7. d3 {[%emt 0:00:30]} d6 {[%emt 0:00:30]} 8. Bg5 {[%emt 0:00:30]} h6 {[%emt 0:00:30]} 9. Bxf6 {[%emt 0:00:30]} Qxf6 {[%emt 0:00:30]} 10. Nd5 {[%emt 0:00:30]} Qd8 {[%emt 0:00:30]} 11. c3 {[%emt 0:00:30]} Ba7 {[%emt 0:00:30]} 12. O-O {[%emt 0:00:30]} Ne7 {[%emt 0:00:30]} 13. Nxe7 {[%emt 0:00:30]} Qxe7 {[%emt 0:00:30]} 14. Nd2 {[%emt 0:00:30]} h5 {[%emt 0:00:30]} 15. b4 {[%emt 0:00:30]} Bg4 {[%emt 0:00:30]} 16. Qe1 {[%emt 0:00:30]} g5 {[%emt 0:00:30]} 17. a4 {[%emt 0:00:30]} f5 {[%emt 0:00:30]} 18. b5 {[%emt 0:00:30]} f4 {[%emt 0:00:30]} 19. bxa6 {[%emt 0:00:30]} bxa6 {[%emt 0:00:30]} 20. Bd5 {[%emt 0:00:30]} Rb8 {[%emt 0:00:30]} 21. Rb1 {[%emt 0:00:30]} Kd7 {[%emt 0:00:30]} 22. Kh1 {[%emt 0:00:30]} Be6 {[%emt 0:00:30]} 23. Qe2 {[%emt 0:00:30]} g4 {[%emt 0:00:30]} 24. d4 {[%emt 0:00:30]} Bxd5 {[%emt 0:00:30]} 25. exd5 {[%emt 0:00:30]} Rxb1 {[%emt 0:00:30]} 26. Rxb1 {[%emt 0:00:30]} exd4 {[%emt 0:00:30]} 27. Qxa6 {[%emt 0:00:30]} Rb8 {[%emt 0:00:30]} 28. Rc1 {[%emt 0:00:30]} Rb2 {[%emt 0:00:30]} 29. Qd3 {[%emt 0:00:30]} dxc3 {[%emt 0:00:30]} 30. Qxc3 {[%emt 0:00:30]} Rb7 {[%emt 0:00:30]} 31. a5 {[%emt 0:00:30]} Bc5 {[%emt 0:00:30]} 32. a6 {[%emt 0:00:30]} Rb4 {[%emt 0:00:30]} 33. Nb3 {[%emt 0:00:30]} Ra4 {[%emt 0:00:30]} 34. Qd3 {[%emt 0:00:30]} Re4 {[%emt 0:00:30]} 35. Nxc5+ {[%emt 0:00:30]} dxc5 {[%emt 0:00:30]} 36. Qb1 {[%emt 0:00:30]} Rb4 {[%emt 0:00:30]} 37. Qa1 {[%emt 0:00:30]} g3 {[%emt 0:00:30]} 38. a7 {[%emt 0:00:30]} f3 {[%emt 0:00:30]} 39. hxg3 {[%emt 0:00:30]} fxg2+ {[%emt 0:00:30]} 40. Kg1 {[%emt 0:00:30]} 1-0

[Event "SRB-chT Men 1st League 2019"]
[Site "Subotica"]
[Date "2019.08.31"]
[Round "10.6"]
[White "Nestorovic, Lazar"]
[Black "Zegarac, Vuk"]
[Result "1/2-1/2"]
[ECO "B10"]
[WhiteElo "2374"]
[BlackElo "2310"]
[Annotator "NA"]
[PlyCount "104"]
[EventDate "2019.08.23"]
[EventType "team-tourn"]
[EventCountry "SRB"]
[SourceTitle "playchess.com"]
[Source "ChessBase"]
[SourceQuality "1"]
[TimeControl "40/5400+30:1800+30"]

1. e4 {[%emt 0:00:01]} c6 {[%emt 0:00:00]} 2. c4 {[%emt 0:00:13]} d5 {[%emt 0:00:00]} 3. exd5 {[%emt 0:00:13]} cxd5 {[%emt 0:00:08]} 4. cxd5 {[%emt 0:00:03]} Nf6 {[%emt 0:00:19]} 5. Nc3 {[%emt 0:00:09]} a6 {[%emt 0:01:46]} 6. Qb3 {[%emt 0:04:42]} g6 {[%emt 0:03:28]} 7. g3 {[%emt 0:01:54]} Bg7 {[%emt 0:02:09]} 8. Bg2 {[%emt 0:00:06]} O-O {[%emt 0:00:11]} 9. Nge2 {[%emt 0:00:16]} Nbd7 {[%emt 0:00:52]} 10. O-O {[%emt 0:00:46]} Ne8 {[%emt 0:02:34]} 11. d3 {[%emt 0:01:59]} Nd6 {[%emt 0:01:18]} 12. Be3 {[%emt 0:00:19]} Nf5 {[%emt 0:02:20]} 13. Bf4 {[%emt 0:01:22]} Ra7 {[%emt 0:05:42]} 14. Qa3 {[%emt 0:08:44]} Nf6 {[%emt 0:04:19]} 15. Nb5 {[%emt 0:11:06]} Ra8 {[%emt 0:01:12]} 16. d6 {[%emt 0:01:50]} Nxd6 {[%emt 0:01:10]} 17. Nxd6 {[%emt 0:00:26]} exd6 {[%emt 0:00:03]} 18. Bxd6 {[%emt 0:00:48]} Re8 {[%emt 0:00:03]} 19. Nc3 {[%emt 0:00:25]} Qb6 {[%emt 0:02:55]} 20. Na4 {[%emt 0:03:25]} Qa5 {[%emt 0:00:50]} 21. Rac1 {[%emt 0:03:48]} Bd7 {[%emt 0:03:14]} 22. Nc3 {[%emt 0:03:59]} Qh5 {[%emt 0:01:06]} 23. Qc5 {[%emt 0:08:07]} Bf5 {[%emt 0:02:46]} 24. Bxb7 {[%emt 0:03:38]} Rad8 {[%emt 0:03:08]} 25. Rfe1 {[%emt 0:01:52]} Ng4 {[%emt 0:02:27]} 26. h4 {[%emt 0:01:01]} Bxd3 {[%emt 0:00:35]} 27. Rxe8+ {[%emt 0:10:37]} Rxe8 {[%emt 0:00:07]} 28. Qc6 {[%emt 0:01:52]} Rd8 {[%emt 0:04:34]} 29. Re1 {[%emt 0:02:59]} Qf5 {[%emt 0:08:53]} 30. Re8+ {[%emt 0:19:50]} Bf8 {[%emt 0:00:04]} 31. Bf4 {[%emt 0:02:32]} Rxe8 {[%emt 0:02:49]} 32. Qxe8 {[%emt 0:00:04]} Qc5 {[%emt 0:00:03]} 33. Qe1 {[%emt 0:01:29]} Qb6 {[%emt 0:00:20]} 34. Bf3 {[%emt 0:00:48]} h5 {[%emt 0:03:20]} 35. Qd2 {[%emt 0:01:06]} Bc4 {[%emt 0:00:52]} 36. Bd5 {[%emt 0:01:03]} Bd3 {[%emt 0:05:17]} 37. Kg2 {[%emt 0:01:35]} Qd4 {[%emt 0:01:58]} 38. Bf3 {[%emt 0:02:14]} Bc5 {[%emt 0:01:08]} 39. Nd1 {[%emt 0:00:28]} Bb4 {[%emt 0:01:24]} 40. Qc1 {[%emt 0:00:00]} Be4 {[%emt 0:00:00]} 41. Ne3 {[%emt 0:23:49]} Bd2 {[%emt 0:02:56]} 42. Qc8+ {[%emt 0:00:26]} Kg7 {[%emt 0:00:58]} 43. Nxg4 {[%emt 0:01:09]} Bxf3+ {[%emt 0:04:37]} 44. Kxf3 {[%emt 0:00:21]} Bxf4 {[%emt 0:00:22]} 45. Nh2 {[%emt 0:01:39]} Be5 {[%emt 0:00:50]} 46. Qb7 {[%emt 0:01:58]} Qxb2 {[%emt 0:00:18]} 47. Qxa6 {[%emt 0:03:34]} Bd4 {[%emt 0:00:08]} 48. Qe2 {[%emt 0:00:07]} Qb7+ {[%emt 0:00:02]} 49. Qe4 {[%emt 0:00:05]} Qb2 {[%emt 0:00:04]} 50. Qe2 {[%emt 0:01:32]} Qb7+ {[%emt 0:00:04]} 51. Qe4 {[%emt 0:01:40]} Qb2 {[%emt 0:00:05]} 52. Qe2 {[%emt 0:00:09]} Qb7+ {[%emt 1:00:12] Ke4} 1/2-1/2

[Event "SRB-chT Men 1st League 2019"]
[Site "Subotica"]
[Date "2019.08.31"]
[Round "10.8"]
[White "Arsovic, Goran"]
[Black "Ivic, Velimir"]
[Result "0-1"]
[ECO "E62"]
[WhiteElo "2389"]
[BlackElo "2511"]
[Annotator "ChessBase"]
[PlyCount "114"]
[EventDate "2019.08.23"]
[EventType "team-tourn"]
[EventCountry "SRB"]
[SourceTitle "playchess.com"]
[Source "ChessBase"]
[SourceQuality "1"]
[TimeControl "40/5400+30:1800+30"]

1. d4 {[%emt 0:00:00]} Nf6 {[%emt 0:00:00]} 2. Nf3 {[%emt 0:00:05]} g6 {[%emt 0:00:00]} 3. c4 {[%emt 0:00:23]} Bg7 {[%emt 0:00:00]} 4. g3 {[%emt 0:00:09]} O-O {[%emt 0:00:00]} 5. Bg2 {[%emt 0:00:12]} d6 {[%emt 0:00:23]} 6. Nc3 {[%emt 0:01:14]} Nc6 {[%emt 0:00:23]} 7. O-O {[%emt 0:00:31]} Bf5 {[%emt 0:00:11]} 8. Be3 {[%emt 0:09:04]} Ng4 {[%emt 0:00:36]} 9. Bg5 {[%emt 0:01:55]} h6 {[%emt 0:00:35]} 10. Bd2 {[%emt 0:01:10]} e5 {[%emt 0:00:41]} 11. dxe5 {[%emt 0:07:51]} dxe5 {[%emt 0:03:25]} 12. Qc1 {[%emt 0:01:27]} Kh7 {[%emt 0:26:19]} 13. h3 {[%emt 0:19:31]} Nf6 {[%emt 0:00:18]} 14. Rd1 {[%emt 0:00:43]} Nd7 {[%emt 0:10:01]} 15. e4 {[%emt 0:12:03]} Be6 {[%emt 0:00:42]} 16. Nd5 {[%emt 0:06:37]} a5 {[%emt 0:04:04]} 17. Bc3 {[%emt 0:04:58]} Qc8 {[%emt 0:06:46]} 18. Qe3 {[%emt 0:02:48]} b6 {[%emt 0:00:37]} 19. b3 {[%emt 0:02:27]} Nc5 {[%emt 0:02:37]} 20. Kh2 {[%emt 0:00:15]} Bd7 {[%emt 0:03:42]} 21. Rac1 {[%emt 0:01:31]} Ne6 {[%emt 0:03:01]} 22. Qe2 {[%emt 0:06:43]} Qd8 {[%emt 0:08:49]} 23. h4 {[%emt 0:05:29]} Ncd4 {[%emt 0:11:00]} 24. Bxd4 {[%emt 0:00:27]} exd4 {[%emt 0:03:47]} 25. Qd2 {[%emt 0:05:13]} c6 {[%emt 0:02:41]} 26. Nf4 {[%emt 0:00:14]} Nxf4 {[%emt 0:00:24]} 27. Qxf4 {[%emt 0:00:05]} c5 {[%emt 0:00:23]} 28. a4 {[%emt 0:01:56]} Qe7 {[%emt 0:01:37]} 29. Qd2 {[%emt 0:03:36]} Rae8 {[%emt 0:01:25]} 30. Ne1 {[%emt 0:00:48]} Bc6 {[%emt 0:01:40]} 31. Nd3 {[%emt 0:00:24]} Bxe4 {[%emt 0:02:44]} 32. Re1 {[%emt 0:01:10]} Qb7 {[%emt 0:00:12]} 33. Rxe4 {[%emt 0:01:19]} Rxe4 {[%emt 0:00:06]} 34. Bxe4 {[%emt 0:00:03]} Qxe4 {[%emt 0:00:06]} 35. Re1 {[%emt 0:00:05]} Qf3 {[%emt 0:06:38]} 36. Qe2 {[%emt 0:01:03]} Qf5 {[%emt 0:01:05]} 37. Qe4 {[%emt 0:00:12]} Qf6 {[%emt 0:00:16]} 38. Qe7 {[%emt 0:01:47]} g5 {[%emt 0:00:56]} 39. hxg5 {[%emt 0:00:37]} hxg5 {[%emt 0:00:14]} 40. Kg2 {[%emt 0:00:00]} Qf5 {[%emt 0:00:00]} 41. Qe4 {[%emt 0:06:26]} Qxe4+ {[%emt 0:03:12]} 42. Rxe4 {[%emt 0:00:04]} Bf6 {[%emt 0:00:19]} 43. Re1 {[%emt 0:06:24]} Kg6 {[%emt 0:01:23]} 44. Re2 {[%emt 0:03:30]} Rh8 {[%emt 0:04:00]} 45. Re1 {[%emt 0:00:18]} Bd8 {[%emt 0:03:11]} 46. Re5 {[%emt 0:01:20]} Kf6 {[%emt 0:03:30]} 47. Re4 {[%emt 0:00:25]} Bc7 {[%emt 0:00:30]} 48. Re1 {[%emt 0:00:11]} Bd6 {[%emt 0:00:22]} 49. Re2 {[%emt 0:00:13]} g4 {[%emt 0:03:33]} 50. Re4 {[%emt 0:01:37]} Kf5 {[%emt 0:00:14]} 51. Re1 {[%emt 0:00:18]} Rh6 {[%emt 0:01:55]} 52. Re8 {[%emt 0:02:22]} Re6 {[%emt 0:01:07]} 53. Rxe6 {[%emt 0:00:27]} fxe6 {[%emt 0:00:52]} 54. f3 {[%emt 0:00:04]} gxf3+ {[%emt 0:00:41]} 55. Kxf3 {[%emt 0:00:06]} Bxg3 {[%emt 0:00:19]} 56. Kxg3 {[%emt 0:00:32]} Ke4 {[%emt 0:01:04]} 57. Nf2+ {[%emt 0:06:29]} Ke5 {[%emt 0:13:54]} 0-1

[Event "SRB-chT Men 1st League 2019"]
[Site "Subotica"]
[Date "2019.08.31"]
[Round "10.10"]
[White "Dimic, Pavle"]
[Black "Stojanovic, Mihajlo"]
[Result "0-1"]
[ECO "D28"]
[WhiteElo "2349"]
[BlackElo "2475"]
[Annotator "ChessBase"]
[PlyCount "114"]
[EventDate "2019.08.23"]
[EventType "team-tourn"]
[EventCountry "SRB"]
[SourceTitle "playchess.com"]
[Source "ChessBase"]
[SourceQuality "1"]
[TimeControl "40/5400+30:1800+30"]

1. d4 {[%emt 0:00:00]} d5 {[%emt 0:00:00]} 2. c4 {[%emt 0:00:01]} dxc4 {[%emt 0:00:00]} 3. Nf3 {[%emt 0:00:12]} Nf6 {[%emt 0:00:03]} 4. e3 {[%emt 0:00:09]} e6 {[%emt 0:00:05]} 5. Bxc4 {[%emt 0:00:14]} c5 {[%emt 0:00:05]} 6. O-O {[%emt 0:00:20]} a6 {[%emt 0:00:04]} 7. Qe2 {[%emt 0:00:34]} b5 {[%emt 0:01:07]} 8. Bd3 {[%emt 0:00:32]} cxd4 {[%emt 0:01:15]} 9. Rd1 {[%emt 0:01:08]} Nc6 {[%emt 0:28:31]} 10. exd4 {[%emt 0:24:06]} Nb4 {[%emt 0:06:32]} 11. Nc3 {[%emt 0:04:07]} Nxd3 {[%emt 0:10:34]} 12. Rxd3 {[%emt 0:00:56]} Be7 {[%emt 0:01:09]} 13. Bg5 {[%emt 0:03:40]} O-O {[%emt 0:00:40]} 14. Bxf6 {[%emt 0:29:11]} Bxf6 {[%emt 0:00:19]} 15. d5 {[%emt 0:03:54]} exd5 {[%emt 0:00:34]} 16. Nxd5 {[%emt 0:08:07]} Bf5 {[%emt 0:02:23]} 17. Nxf6+ {[%emt 0:06:48]} Qxf6 {[%emt 0:00:07]} 18. Rd4 {[%emt 0:00:54]} h6 {[%emt 0:10:05]} 19. Qd2 {[%emt 0:00:33]} Rad8 {[%emt 0:08:19]} 20. Rd1 {[%emt 0:00:53]} Rxd4 {[%emt 0:00:11]} 21. Qxd4 {[%emt 0:00:36]} Qc6 {[%emt 0:00:26]} 22. Ne5 {[%emt 0:05:00]} Qc2 {[%emt 0:04:29]} 23. Qd2 {[%emt 0:06:20]} Rc8 {[%emt 0:01:41]} 24. h3 {[%emt 0:00:26]} Be6 {[%emt 0:12:24]} 25. b3 {[%emt 0:02:16]} Qf5 {[%emt 0:03:00]} 26. Nf3 {[%emt 0:00:48]} Rc2 {[%emt 0:00:53]} 27. Qd8+ {[%emt 0:00:31]} Kh7 {[%emt 0:00:09]} 28. Rd2 {[%emt 0:00:26]} Rc1+ {[%emt 0:02:50]} 29. Rd1 {[%emt 0:00:05]} Qb1 {[%emt 0:00:20]} 30. Rxc1 {[%emt 0:00:08]} Qxc1+ {[%emt 0:00:04]} 31. Kh2 {[%emt 0:00:15]} Qf4+ {[%emt 0:01:24]} 32. Kg1 {[%emt 0:00:50]} Bxh3 {[%emt 0:00:29]} 33. Qa8 {[%emt 0:01:55]} Qc1+ {[%emt 0:03:57]} 34. Kh2 {[%emt 0:00:03]} Qc8 {[%emt 0:00:18]} 35. Qa7 {[%emt 0:00:49]} Bxg2 {[%emt 0:02:02]} 36. Kxg2 {[%emt 0:00:02]} Qg4+ {[%emt 0:00:01]} 37. Kf1 {[%emt 0:00:13]} Qxf3 {[%emt 0:00:06]} 38. Qxa6 {[%emt 0:00:05]} Qd1+ {[%emt 0:01:03]} 39. Kg2 {[%emt 0:00:06]} Qg4+ {[%emt 0:00:51]} 40. Kf1 {[%emt 0:00:00]} Qd1+ {[%emt 0:00:00]} 41. Kg2 {[%emt 0:00:44]} Qd5+ {[%emt 0:03:32]} 42. Kg1 {[%emt 0:05:11]} b4 {[%emt 0:01:49]} 43. Qb6 {[%emt 0:01:25]} Qe4 {[%emt 0:00:18]} 44. Qc5 {[%emt 0:01:24]} Qg4+ {[%emt 0:25:22]} 45. Kf1 {[%emt 0:01:02]} h5 {[%emt 0:00:50]} 46. a3 {[%emt 0:05:34]} bxa3 {[%emt 0:00:05]} 47. Qxa3 {[%emt 0:00:04]} Qf3 {[%emt 0:00:21]} 48. Qc5 {[%emt 0:02:20]} h4 {[%emt 0:00:49]} 49. Qg5 {[%emt 0:12:47]} h3 {[%emt 0:00:29]} 50. Qh4+ {[%emt 0:04:27]} Kg6 {[%emt 0:00:14]} 51. Qg3+ {[%emt 0:00:30]} Qxg3 {[%emt 0:00:06]} 52. fxg3 {[%emt 0:00:02]} Kf5 {[%emt 0:00:12]} 53. b4 {[%emt 0:00:24]} g5 {[%emt 0:02:01]} 54. g4+ {[%emt 0:02:50]} Ke4 {[%emt 0:00:08]} 55. Kf2 {[%emt 0:00:43]} Kd4 {[%emt 0:00:06]} 56. Kg3 {[%emt 0:00:27]} Kc4 {[%emt 0:00:05]} 57. Kxh3 {[%emt 0:00:39]} Kxb4 {[%emt 0:00:06]} 0-1

[Event "SRB-chT Men 1st League 2019"]
[Site "Subotica"]
[Date "2019.08.31"]
[Round "10.11"]
[White "Damjanovic, Vuk"]
[Black "Klasan, Vladimir"]
[Result "1-0"]
[ECO "A43"]
[WhiteElo "2246"]
[BlackElo "2357"]
[Annotator "NA"]
[PlyCount "79"]
[EventDate "2019.08.23"]
[EventType "team-tourn"]
[EventCountry "SRB"]
[SourceTitle "playchess.com"]
[Source "ChessBase"]
[SourceQuality "1"]
[TimeControl "40/5400+30:1800+30"]

1. d4 {[%emt 1:30:30]} Nf6 {[%emt 1:30:30]} 2. Nf3 {[%emt 0:00:30]} c5 {[%emt 0:00:30]} 3. d5 {[%emt 0:00:30]} e6 {[%emt 0:00:30]} 4. Nc3 {[%emt 0:00:30]} exd5 {[%emt 0:00:30]} 5. Nxd5 {[%emt 0:00:30]} h6 {[%emt 0:00:30]} 6. e4 {[%emt 0:00:30]} Nxd5 {[%emt 0:00:30]} 7. Qxd5 {[%emt 0:00:30]} Nc6 {[%emt 0:00:30]} 8. Bc4 {[%emt 0:00:30]} Qe7 {[%emt 0:00:30]} 9. O-O {[%emt 0:00:30]} d6 {[%emt 0:00:30]} 10. Bf4 {[%emt 0:00:30]} Be6 {[%emt 0:00:30]} 11. Qd3 {[%emt 0:00:30]} Bxc4 {[%emt 0:00:30]} 12. Qxc4 {[%emt 0:00:30]} Qe6 {[%emt 0:00:30]} 13. Qd3 {[%emt 0:00:30]} Be7 {[%emt 0:00:30]} 14. c3 {[%emt 0:00:30]} O-O {[%emt 0:00:30]} 15. Rfe1 {[%emt 0:00:30]} Rfe8 {[%emt 0:00:30]} 16. Qd5 {[%emt 0:00:30]} Qxd5 {[%emt 0:00:30]} 17. exd5 {[%emt 0:00:30]} Na5 {[%emt 0:00:30]} 18. Re4 {[%emt 0:00:30]} Bf8 {[%emt 0:00:30]} 19. Rae1 {[%emt 0:00:30]} Rxe4 {[%emt 0:00:30]} 20. Rxe4 {[%emt 0:00:30]} b6 {[%emt 0:00:30]} 21. h4 {[%emt 0:00:30]} g6 {[%emt 0:00:30]} 22. g4 {[%emt 0:00:30]} Kg7 {[%emt 0:00:30]} 23. h5 {[%emt 0:00:30]} Nb7 {[%emt 0:00:30]} 24. Nh4 {[%emt 0:00:30]} gxh5 {[%emt 0:00:30]} 25. gxh5 {[%emt 0:00:30]} Rc8 {[%emt 0:00:30]} 26. c4 {[%emt 0:00:30]} Kh7 {[%emt 0:00:30]} 27. Nf5 {[%emt 0:00:30]} Rd8 {[%emt 0:00:30]} 28. Kg2 {[%emt 0:00:30]} Na5 {[%emt 0:00:30]} 29. Kf3 {[%emt 0:00:30]} Nb7 {[%emt 0:00:30]} 30. Bd2 {[%emt 0:00:30]} Rb8 {[%emt 0:00:30]} 31. Bc3 {[%emt 0:00:30]} Rd8 {[%emt 0:00:30]} 32. Bf6 {[%emt 0:00:30]} Rc8 {[%emt 0:00:30]} 33. Be7 {[%emt 0:00:30]} Bg7 {[%emt 0:00:30]} 34. Nxd6 {[%emt 0:00:30]} Nxd6 {[%emt 0:00:30]} 35. Bxd6 {[%emt 0:00:30]} Rd8 {[%emt 0:00:30]} 36. Be5 {[%emt 0:00:30]} f6 {[%emt 0:00:30]} 37. Bc3 {[%emt 0:00:30]} Rd7 {[%emt 0:00:30]} 38. Re6 {[%emt 0:00:30]} Kg8 {[%emt 0:00:30]} 39. Kf4 {[%emt 0:00:30]} Kf7 {[%emt 0:00:30]} 40. Ke4 {[%emt 0:00:30]} 1-0

[Event "SRB-chT Men 1st League 2019"]
[Site "Subotica"]
[Date "2019.08.31"]
[Round "10.12"]
[White "Milekic, Daniel"]
[Black "Kisic, Jovan"]
[Result "1-0"]
[ECO "A29"]
[WhiteElo "2298"]
[BlackElo "1757"]
[Annotator "NA"]
[PlyCount "57"]
[EventDate "2019.08.23"]
[EventType "team-tourn"]
[EventCountry "SRB"]
[SourceTitle "playchess.com"]
[Source "ChessBase"]
[SourceQuality "1"]
[TimeControl "40/5400+30:1800+30"]

1. c4 {[%emt 0:00:00]} e5 {[%emt 0:00:57]} 2. Nc3 {[%emt 0:00:03]} Nf6 {[%emt 0:03:19]} 3. Nf3 {[%emt 0:00:11]} Nc6 {[%emt 0:02:00]} 4. g3 {[%emt 0:00:12]} Bc5 {[%emt 0:02:19]} 5. Nxe5 {[%emt 0:02:50]} Bxf2+ {[%emt 0:02:42]} 6. Kxf2 {[%emt 0:00:06]} Nxe5 {[%emt 0:00:50]} 7. e4 {[%emt 0:00:40]} h5 {[%emt 0:13:18]} 8. d4 {[%emt 0:11:57]} Nfg4+ {[%emt 0:03:11]} 9. Ke1 {[%emt 0:11:54]} Ng6 {[%emt 0:14:26]} 10. h3 {[%emt 0:02:17]} Nh6 {[%emt 0:03:08]} 11. Qxh5 {[%emt 0:04:45]} Qf6 {[%emt 0:02:45]} 12. Be3 {[%emt 0:06:41]} c6 {[%emt 0:06:22]} 13. Qe2 {[%emt 0:13:10]} d6 {[%emt 0:03:12]} 14. Bg2 {[%emt 0:00:34]} Be6 {[%emt 0:01:34]} 15. Kd2 {[%emt 0:03:35]} O-O-O {[%emt 0:03:10]} 16. d5 {[%emt 0:02:02]} Bd7 {[%emt 0:02:59]} 17. Qf2 {[%emt 0:04:22]} Qe7 {[%emt 0:02:21]} 18. dxc6 {[%emt 0:01:54]} Bxc6 {[%emt 0:00:40]} 19. Nd5 {[%emt 0:00:58]} Qe6 {[%emt 0:03:12]} 20. Bxa7 {[%emt 0:02:28]} Ne5 {[%emt 0:01:07]} 21. Rac1 {[%emt 0:01:05]} Kd7 {[%emt 0:01:26]} 22. Be3 {[%emt 0:02:06]} Qg6 {[%emt 0:01:46]} 23. g4 {[%emt 0:02:00]} Ng8 {[%emt 0:01:30]} 24. Qf5+ {[%emt 0:01:10]} Qe6 {[%emt 0:00:44]} 25. Bd4 {[%emt 0:02:07]} g6 {[%emt 0:01:03]} 26. Qxe6+ {[%emt 0:00:41]} fxe6 {[%emt 0:00:12]} 27. Nb4 {[%emt 0:03:32]} Ne7 {[%emt 0:01:31]} 28. c5 {[%emt 0:03:09]} dxc5 {[%emt 0:01:05]} 29. Bxe5 {[%emt 0:18:01]} 1-0

[Event "SRB-chT Men 1st League 2019"]
[Site "Subotica"]
[Date "2019.08.31"]
[Round "10.15"]
[White "Kovacevic, Aleksandar"]
[Black "Miladinovic, Igor"]
[Result "1/2-1/2"]
[ECO "B15"]
[WhiteElo "2480"]
[BlackElo "2532"]
[Annotator "ChessBase"]
[PlyCount "27"]
[EventDate "2019.08.23"]
[EventType "team-tourn"]
[EventCountry "SRB"]
[SourceTitle "playchess.com"]
[Source "ChessBase"]
[SourceQuality "1"]
[TimeControl "40/5400+30:1800+30"]

1. e4 {[%emt 0:00:00]} c6 {[%emt 0:01:18]} 2. d4 {[%emt 0:00:21]} d5 {[%emt 0:00:27]} 3. Nc3 {[%emt 0:01:08]} dxe4 {[%emt 0:00:23]} 4. Nxe4 {[%emt 0:00:05]} Nf6 {[%emt 0:00:08]} 5. Nxf6+ {[%emt 0:00:26]} exf6 {[%emt 0:00:08]} 6. c3 {[%emt 0:01:34]} Bd6 {[%emt 0:05:12]} 7. Bd3 {[%emt 0:01:51]} O-O {[%emt 0:00:14]} 8. Qc2 {[%emt 0:06:51]} Re8+ {[%emt 0:00:06]} 9. Ne2 {[%emt 0:00:18]} h5 {[%emt 0:01:12]} 10. Be3 {[%emt 0:04:54]} Nd7 {[%emt 0:00:35]} 11. O-O {[%emt 0:01:36]} Qc7 {[%emt 0:00:26]} 12. h3 {[%emt 0:00:51]} Nf8 {[%emt 0:00:06]} 13. c4 {[%emt 0:01:35]} Ne6 {[%emt 0:06:52]} 14. Qd2 {[%emt 0:05:24]} 1/2-1/2

[Event "SRB-chT Men 1st League 2019"]
[Site "Subotica"]
[Date "2019.08.31"]
[Round "10.16"]
[White "Miljkovic, Miroslav D"]
[Black "Saric, Sinisa"]
[Result "1-0"]
[ECO "E71"]
[WhiteElo "2483"]
[BlackElo "2410"]
[Annotator "ChessBase"]
[PlyCount "85"]
[EventDate "2019.08.23"]
[EventType "team-tourn"]
[EventCountry "SRB"]
[SourceTitle "playchess.com"]
[Source "ChessBase"]
[SourceQuality "1"]
[TimeControl "40/5400+30:1800+30"]

1. d4 {[%emt 0:00:00]} Nf6 {[%emt 0:00:00]} 2. c4 {[%emt 0:00:00]} g6 {[%emt 0:00:00]} 3. Nc3 {[%emt 0:00:00]} Bg7 {[%emt 0:00:09]} 4. e4 {[%emt 0:00:03]} O-O {[%emt 0:00:10]} 5. h3 {[%emt 0:00:59]} c6 {[%emt 0:01:13]} 6. Bd3 {[%emt 0:03:12]} d6 {[%emt 0:00:13]} 7. Nge2 {[%emt 0:00:44]} Nbd7 {[%emt 0:02:26]} 8. Be3 {[%emt 0:03:18]} a6 {[%emt 0:13:53]} 9. O-O {[%emt 0:15:15]} b5 {[%emt 0:01:56]} 10. a3 {[%emt 0:06:18]} bxc4 {[%emt 0:17:24]} 11. Bxc4 {[%emt 0:01:41]} d5 {[%emt 0:01:19]} 12. Bd3 {[%emt 0:02:11]} dxe4 {[%emt 0:22:52]} 13. Nxe4 {[%emt 0:05:53]} Nd5 {[%emt 0:00:14]} 14. Rc1 {[%emt 0:12:33]} Nxe3 {[%emt 0:09:49]} 15. fxe3 {[%emt 0:00:05]} e5 {[%emt 0:00:06]} 16. Bc4 {[%emt 0:03:28]} exd4 {[%emt 0:04:23]} 17. Nxd4 {[%emt 0:02:11]} Qe7 {[%emt 0:05:17]} 18. Qc2 {[%emt 0:02:35]} Bb7 {[%emt 0:02:07]} 19. Nf3 {[%emt 0:06:46]} c5 {[%emt 0:02:56]} 20. Neg5 {[%emt 0:01:54]} Bxf3 {[%emt 0:12:14]} 21. Nxf3 {[%emt 0:01:07]} Ne5 {[%emt 0:00:27]} 22. Bd5 {[%emt 0:09:35]} Rad8 {[%emt 0:00:02]} 23. e4 {[%emt 0:00:37]} Nxf3+ {[%emt 0:00:06]} 24. Rxf3 {[%emt 0:00:05]} Bd4+ {[%emt 0:00:04]} 25. Kh1 {[%emt 0:00:10]} Kg7 {[%emt 0:00:20]} 26. Rcf1 {[%emt 0:03:04]} f6 {[%emt 0:01:05]} 27. Qa4 {[%emt 0:01:43]} Bxb2 {[%emt 0:01:45]} 28. Qxa6 {[%emt 0:01:40]} Rb8 {[%emt 0:00:22]} 29. a4 {[%emt 0:00:36]} Be5 {[%emt 0:00:16]} 30. a5 {[%emt 0:01:23]} Bd6 {[%emt 0:00:16]} 31. Qd3 {[%emt 0:04:13]} Qe5 {[%emt 0:00:02]} 32. g3 {[%emt 0:00:11]} Rb4 {[%emt 0:01:29]} 33. a6 {[%emt 0:00:53]} Ra4 {[%emt 0:00:48]} 34. Qb5 {[%emt 0:01:17]} Ra1 {[%emt 0:00:21]} 35. Rxa1 {[%emt 0:01:44]} Qxa1+ {[%emt 0:00:01]} 36. Rf1 {[%emt 0:00:00]} Qe5 {[%emt 0:00:10]} 37. Rg1 {[%emt 0:05:10]} Rb8 {[%emt 0:01:37]} 38. Qd7+ {[%emt 0:00:57]} Kh6 {[%emt 0:00:02]} 39. Qg4 {[%emt 0:03:24]} Rb2 {[%emt 0:01:03]} 40. a7 {[%emt 0:00:00]} Qd4 {[%emt 0:00:00]} 41. a8=Q {[%emt 0:01:47]} Bb8 {[%emt 0:03:20]} 42. Qxb8 {[%emt 0:01:51]} Rxb8 {[%emt 0:00:09]} 43. Qf4+ {[%emt 0:00:06]} 1-0